bitfinex-derivatives/quotes_ETHF0:USTF0_20241105
["timestamp","ask_amount","ask_price","bid_price","bid_amount"]
[1730829241262,0.4478,2457.9,2457.6,0.4069]
[1730829241661,0.4478,2457.9,2457.4,5.2938]
[1730829241961,0.4478,2457.9,2457.6,0.40691]
[1730829242162,0.4478,2457.9,2457.4,5.2938]
[1730829242458,0.4478,2457.9,2457.8,0.40688]
[1730829242850,0.4478,2457.9,2457.7,0.40689]
[1730829243061,0.4478,2457.9,2457.7,3.61469]
[1730829244662,0.4478,2457.9,2457.7,3.2078]
[1730829244864,0.4069,2457.8,2457.5,1.184]
[1730829245061,3.2078,2457.8,2457.2,1.06212834]
[1730829245368,0.40694,2457.5,2457.2,1.59098]
[1730829245562,0.40693,2457.5,2457.2,1.59098]
[1730829246159,0.40697,2457.3,2457.1,0.4325]
[1730829246468,3.17682122,2457.7,2456.8,4.69784956]
[1730829246469,0.40699,2457.2,2456.8,0.84224]
[1730829246663,0.911,2457.4,2456.8,0.4352]
[1730829246855,0.911,2457.4,2457.1,0.40699]
[1730829247361,1.31795,2457.4,2457.1,0.40699]
[1730829247667,2.10639634,2457.3,2457.1,0.40699]
[1730829248564,2.10639634,2457.3,2456.8,0.9058]
[1730829248961,2.10639634,2457.3,2457.0,0.407]
[1730829249261,2.10639634,2457.3,2457.1,0.40699]
[1730829249466,2.10639634,2457.3,2457.2,0.444]
[1730829250064,2.10639634,2457.3,2457.2,0.85098]
[1730829250464,13.21839634,2457.3,2457.2,0.444]
[1730829251465,13.21839634,2457.3,2457.2,4.92058]
[1730829251671,13.21839634,2457.3,2457.2,5.38348]
[1730829252168,11.112,2457.3,2457.2,5.38348]
[1730829252367,11.112,2457.3,2457.2,8.56030122]
[1730829256374,0.61189,2457.8,2457.2,8.56030122]
[1730829256375,0.61189,2457.8,2457.3,0.40695]
[1730829256564,0.4295,2457.9,2457.3,1.184]
[1730829256871,0.40692,2457.6,2457.3,1.184]
[1730829257174,0.4528,2457.5,2457.3,1.184]
[1730829257469,0.4528,2457.5,2457.1,2.65575117]
[1730829257769,1.77543,2457.5,2457.1,3.12005117]
[1730829258162,1.77543,2457.5,2457.2,0.40697]
[1730829258163,1.3685,2457.5,2457.2,0.40697]
[1730829258363,1.3685,2457.5,2457.1,2.71306117]
[1730829258776,1.3685,2457.5,2457.3,0.40696]
[1730829259965,1.3685,2457.5,2457.2,0.40697]
[1730829261166,1.77543,2457.5,2457.1,2.05529]
[1730829261873,1.3685,2457.5,2457.2,0.40698]
[1730829262679,1.77544,2457.5,2457.1,0.87129]
[1730829263772,1.77544,2457.5,2457.2,0.40698]
[1730829265673,1.3685,2457.5,2457.0,3.2078]
[1730829265974,5.31423826,2457.4,2457.3,0.40697]
[1730829266373,9.79079826,2457.4,2457.1,0.40699]
[1730829266571,5.72119826,2457.4,2457.1,0.40699]
[1730829266768,3.61476,2457.4,2457.1,0.40699]
[1730829266964,5.72119826,2457.4,2457.1,0.40699]
[1730829267778,5.31423826,2457.4,2457.0,3.61481]
[1730829268079,0.40698,2457.3,2457.0,3.61481]
[1730829269585,0.40698,2457.3,2457.1,0.40699]
[1730829269783,2.51341826,2457.3,2457.1,0.40699]
[1730829270079,2.10643826,2457.3,2457.1,0.40699]
[1730829271792,2.51340826,2457.3,2456.9,1.4657331]
[1730829272080,2.51340826,2457.3,2457.0,0.40701]
[1730829273990,2.10643826,2457.3,2457.1,0.407]
[1730829274590,2.10643826,2457.3,2456.9,1.4657331]
[1730829274980,2.10643826,2457.3,2457.1,0.40699]
[1730829275590,5.72118826,2457.4,2457.1,0.40699]
[1730829275892,5.31423826,2457.4,2457.2,0.40697]
[1730829276080,3.2078,2457.4,2457.2,0.40697]
[1730829276385,5.31423826,2457.4,2457.0,1.4657331]
[1730829276583,3.2078,2457.4,2457.3,0.40697]
[1730829279802,3.2078,2457.4,2457.2,0.40697]
[1730829280894,1.3685,2457.5,2457.2,0.40697]
[1730829281095,3.47493826,2457.5,2457.2,0.40697]
[1730829282299,3.47493826,2457.5,2457.3,0.40697]
[1730829284801,2.63304782,2457.4,2457.3,0.40697]
[1730829286700,2.63304782,2457.4,2457.0,1.9115331]
[1730829286904,2.10922234,2457.3,2457.2,0.40698]
[1730829287199,2.63304782,2457.4,2457.2,0.40698]
[1730829287400,1.77544,2457.5,2457.3,8.7431331]
[1730829287401,2.10933134,2457.5,2457.3,8.7431331]
[1730829287701,2.10933134,2457.6,2457.5,0.40693]
[1730829287901,2.10933134,2457.6,2457.5,5.0804631]
[1730829288200,2.10933134,2457.7,2457.6,0.40692]
[1730829288706,2.10933134,2457.8,2457.7,0.4069]
[1730829288998,2.63304782,2457.9,2457.7,4.4757]
[1730829289203,2.11066963,2457.8,2457.7,0.4069]
[1730829289406,2.63304782,2457.9,2457.6,0.4069]
[1730829289608,2.11074213,2457.7,2457.6,0.4069]
[1730829290002,2.11074213,2457.7,2457.6,0.40692]
[1730829290203,2.63304782,2457.9,2457.5,3.6595]
[1730829290402,2.11072859,2457.7,2457.5,3.6595]
[1730829290607,2.11072859,2457.7,2457.5,3.2078]
[1730829290808,2.11072859,2457.7,2457.4,2.04554]
[1730829290809,2.11072859,2457.6,2457.4,2.04554]
[1730829291008,2.11072859,2457.6,2457.5,0.40693]
[1730829291802,2.63304782,2457.7,2457.4,2.04554]
[1730829291998,2.11111993,2457.5,2457.4,2.04554]
[1730829292505,2.11111993,2457.5,2457.4,2.04555]
[1730829292697,2.11111993,2457.5,2457.4,0.4566]
[1730829292899,4.45725303,2457.7,2457.2,1.18]
[1730829293102,4.45725303,2457.7,2457.2,3.0763331]
[1730829293301,2.99151993,2457.7,2457.2,4.14109427]
[1730829293497,2.99151993,2457.7,2457.2,3.0763331]
[1730829293701,2.99151993,2457.7,2457.4,0.40693]
[1730829294310,2.99151993,2457.7,2457.2,3.0763331]
[1730829294710,3.39842993,2457.7,2457.3,0.40696]
[1730829295810,2.99151993,2457.7,2457.4,0.40694]
[1730829296515,2.99151993,2457.7,2457.3,0.40696]
[1730829296705,0.40692,2457.6,2457.3,0.40696]
[1730829297014,2.99151993,2457.7,2457.5,0.40693]
[1730829297214,2.11111993,2457.7,2457.6,0.40692]
[1730829297405,2.11111993,2457.9,2457.4,4.27256117]
[1730829297615,2.11111993,2458.0,2457.8,0.40688]
[1730829299114,45.31575303,2458.1,2457.8,0.40688]
[1730829299310,2.51796993,2458.0,2457.7,0.87639]
[1730829299905,2.11111993,2458.0,2457.7,0.87639]
[1730829300113,2.11111993,2458.0,2457.8,0.40688]
[1730829300518,2.11111993,2458.0,2457.9,0.40687]
[1730829300702,2.11111993,2458.0,2457.7,5.1430331]
[1730829300703,43.85001993,2458.1,2458.0,0.40685]
[1730829301313,41.7389,2458.1,2458.0,0.40685]
[1730829301510,41.7389,2458.1,2457.9,0.40685]
[1730829301511,45.31575303,2458.1,2457.9,0.40685]
[1730829304127,45.31575303,2458.1,2457.8,0.4681]
[1730829304416,45.31575303,2458.1,2457.9,0.40686]
[1730829305417,43.2046331,2458.1,2457.8,0.4681]
[1730829305720,43.2046331,2458.1,2458.0,0.40685]
[1730829306016,2.11111993,2458.2,2458.1,0.40683]
[1730829306612,4.068,2458.2,2458.1,0.40683]
[1730829307209,4.068,2458.2,2458.0,0.40684]
[1730829307514,2.96772993,2458.3,2458.0,0.40684]
[1730829307719,2.56091993,2458.3,2458.1,0.40683]
[1730829308114,6.62891993,2458.3,2458.1,0.40683]
[1730829309215,0.40682,2458.2,2458.0,0.40684]
[1730829309617,2.56091993,2458.3,2458.0,0.40684]
[1730829309818,2.96772993,2458.3,2457.8,0.4681]
[1730829310021,2.96772993,2458.3,2458.1,0.40683]
[1730829310623,0.40682,2458.2,2458.0,0.40684]
[1730829311314,2.96772993,2458.3,2458.1,0.40683]
[1730829311820,0.40686,2458.0,2457.8,0.87497]
[1730829312021,46.3337331,2458.2,2457.7,0.87639]
[1730829312022,2.3223031,2457.9,2457.7,0.87639]
[1730829312229,3.2300031,2457.9,2457.7,0.87639]
[1730829313719,2.8231331,2457.9,2457.6,4.3878]
[1730829314023,0.4069,2457.7,2457.6,3.2078]
[1730829314222,1.4657331,2457.7,2457.4,0.4639]
[1730829314426,0.40692,2457.6,2457.4,0.87085]
[1730829314823,0.4345,2457.5,2457.1,3.2078]
[1730829315127,0.84144,2457.5,2457.2,0.40697]
[1730829315625,0.4717,2457.4,2457.2,0.40697]
[1730829315822,1.9374331,2457.4,2457.1,3.2078]
[1730829316119,1.9374331,2457.4,2457.0,1.99616117]
[1730829316120,1.8727131,2457.2,2457.0,1.99616117]
[1730829316325,1.8727231,2457.2,2457.0,2.40317117]
[1730829316529,1.4657331,2457.2,2457.1,0.407]
[1730829316825,2.7907831,2457.4,2457.0,1.99616117]
[1730829317027,2.7907831,2457.4,2457.1,0.40699]
[1730829317826,0.40697,2457.3,2457.1,0.40699]
[1730829318027,0.40697,2457.3,2457.0,1.99616117]
[1730829318330,2.7907931,2457.4,2457.1,0.40699]
[1730829318624,0.9181,2457.4,2457.0,2.3971331]
[1730829318828,3.2078,2457.6,2457.2,1.4657331]
[1730829319126,3.2078,2457.6,2457.5,0.40693]
[1730829319824,0.9266,2457.9,2457.7,0.40689]
[1730829320129,1.9098331,2458.1,2457.8,0.40687]
[1730829320630,2.3166731,2458.1,2457.7,0.40689]
[1730829321128,1.9098331,2458.1,2457.8,0.4642]
[1730829321327,0.4441,2458.1,2457.8,0.87108]
[1730829322128,43.31191928,2458.2,2457.9,0.40685]
[1730829322129,42.90509928,2458.2,2457.9,0.40685]
[1730829322329,42.90509928,2458.2,2458.0,0.4479]
[1730829324131,42.90509928,2458.2,2458.0,0.85475]
[1730829326134,42.90509928,2458.2,2458.0,0.4479]
[1730829326831,40.8,2458.2,2458.0,0.4479]
[1730829327438,41.20682,2458.2,2458.0,0.4479]
[1730829328436,41.20682,2458.2,2458.0,0.85475]
[1730829328836,0.40683,2458.1,2458.0,0.4479]
[1730829330648,0.40687,2458.0,2457.8,0.4642]
[1730829331336,1.33227,2458.0,2457.8,0.4642]
[1730829331534,3.43736928,2458.0,2457.8,0.4642]
[1730829332526,3.03049928,2458.0,2457.4,1.06488118]
[1730829332834,3.03049928,2458.0,2457.7,0.4069]
[1730829332835,2.51196928,2457.9,2457.7,0.4069]
[1730829333039,2.10509928,2457.9,2457.7,0.4069]
[1730829333541,0.01857937,2457.8,2457.7,0.4069]
[1730829334426,0.01857937,2457.8,2457.4,2.0693]
[1730829334628,0.42546937,2457.8,2457.6,0.40691]
[1730829335135,0.42546937,2457.8,2457.4,2.0693]
[1730829335136,0.4069,2457.7,2457.5,0.40692]
[1730829335643,0.01857937,2457.6,2457.5,0.40692]
[1730829336338,0.01857937,2457.6,2457.4,2.0693]
[1730829336339,0.42549937,2457.6,2457.4,2.47624]
[1730829336642,0.42550937,2457.5,2457.4,0.8923]
[1730829337042,0.42550937,2457.5,2457.3,0.40695]
[1730829337638,0.01857937,2457.4,2457.3,0.40695]
[1730829337843,0.42552937,2457.4,2457.2,4.50877]
[1730829338142,0.40697,2457.3,2457.2,4.1018]
[1730829338332,0.40697,2457.3,2457.2,3.2078]
[1730829338537,0.42554937,2457.3,2457.2,3.2078]
[1730829339239,0.42554937,2457.3,2457.1,0.40699]
[1730829339745,2.56419928,2457.4,2457.1,0.40699]
[1730829339746,0.01857937,2457.2,2457.1,0.40699]
[1730829340445,0.01857937,2457.2,2457.0,0.42262]
[1730829340641,0.01857937,2457.1,2457.0,0.42262]
[1730829341144,0.01857937,2457.1,2457.0,0.40701]
[1730829342746,0.01857937,2457.1,2456.9,0.87252]
[1730829342943,0.40702,2457.0,2456.9,0.4655]
[1730829343544,0.42558937,2457.1,2456.9,0.4655]
[1730829343744,0.42559937,2457.0,2456.9,0.4655]
[1730829343957,41.22559937,2457.0,2456.9,0.4655]
[1730829344243,40.81857937,2457.0,2456.9,0.4655]
[1730829344843,41.22559937,2457.0,2456.9,0.4655]
[1730829345044,40.81857937,2457.0,2456.5,0.85599]
[1730829345248,0.40705,2456.8,2456.6,0.8943]
[1730829345440,40.81857937,2457.0,2456.1,1.06488118]
[1730829345441,3.17465165,2456.7,2456.1,1.06488118]
[1730829345642,0.40712,2456.4,2456.3,0.4537]
[1730829345938,0.42569937,2456.4,2456.3,0.4537]
[1730829346143,0.87269937,2456.4,2456.3,0.4537]
[1730829346549,7.71143102,2456.4,2456.0,3.2078]
[1730829346741,0.40719,2456.0,2455.8,0.4537]
[1730829347448,3.61501,2455.9,2455.5,1.58526]
[1730829347846,0.01857937,2455.7,2455.5,1.58526]
[1730829348150,0.01857937,2455.7,2455.5,0.40726]
[1730829348352,0.01857937,2455.7,2455.4,0.4537]
[1730829348539,0.42580937,2455.7,2455.4,0.4537]
[1730829348744,3.58192165,2455.5,2455.0,0.40734]
[1730829348939,0.01857937,2455.3,2454.9,1.178]
[1730829349150,0.01857937,2455.3,2454.9,1.58535]
[1730829349347,0.42588937,2455.3,2454.9,1.58535]
[1730829349652,40.8,2455.2,2454.9,1.58535]
[1730829350067,0.01857937,2455.1,2454.9,1.58535]
[1730829350353,0.01857937,2455.1,2455.0,0.40735]
[1730829350553,0.01857937,2455.1,2454.9,1.58535]
[1730829350752,0.01857937,2455.1,2455.0,0.40735]
[1730829351050,0.01857937,2455.1,2454.9,1.58536]
[1730829351445,0.01857937,2455.1,2454.9,1.178]
[1730829352039,40.8,2455.2,2455.1,0.40733]
[1730829352243,3.17465165,2455.5,2455.1,0.40733]
[1730829352854,43.97465165,2455.5,2455.1,0.40733]
[1730829353340,43.97465165,2455.5,2454.9,1.178]
[1730829353341,0.9348,2455.6,2455.4,0.40727]
[1730829353547,3.17465165,2455.7,2455.0,3.2078]
[1730829353753,3.2078,2455.9,2455.5,0.40726]
[1730829355347,3.2078,2455.9,2455.4,0.9221]
[1730829355553,3.2078,2455.9,2455.0,0.4601]
[1730829355554,3.17465165,2455.5,2455.0,0.4601]
[1730829355757,3.6609,2455.9,2455.0,0.4601]
[1730829355758,3.17465165,2455.7,2455.3,0.4073]
[1730829355961,3.17465165,2455.7,2455.1,0.9221]
[1730829356161,3.17465165,2455.7,2455.3,0.40729]
[1730829357052,3.6609,2455.9,2455.5,0.40726]
[1730829357460,4.06811,2455.9,2455.4,0.40727]
[1730829357964,4.06811,2455.9,2455.5,0.40726]
[1730829358464,3.6609,2455.9,2455.2,3.2078]
[1730829358672,0.40722,2455.8,2455.3,0.40728]
[1730829359765,0.40722,2455.8,2455.3,0.40729]
[1730829360065,0.40722,2455.8,2455.4,0.40728]
[1730829361059,0.4531,2455.9,2455.2,0.40731]
[1730829361364,0.40728,2455.5,2455.1,4.53722]
[1730829361556,3.17465165,2455.6,2455.1,4.1299]
[1730829361959,0.40731,2455.3,2455.1,4.1299]
[1730829362154,3.17465165,2455.4,2454.8,1.176]
[1730829362460,0.40733,2455.1,2454.8,1.58337]
[1730829362764,0.40733,2455.1,2454.8,0.40737]
[1730829363259,0.40734,2455.1,2454.8,0.40738]
[1730829364865,40.8,2455.0,2454.8,0.40738]
[1730829365066,0.40738,2454.8,2454.7,0.4673]
[1730829365658,3.17465165,2454.9,2454.7,0.87469]
[1730829366569,3.17465165,2454.9,2454.7,0.4673]
[1730829366870,3.17465165,2454.9,2454.7,0.8747]
[1730829367062,3.17465165,2454.9,2454.7,0.4673]
[1730829367264,3.17465165,2454.9,2454.7,0.87468]
[1730829367468,3.17465165,2454.9,2454.8,0.40738]
[1730829368266,40.8,2455.0,2454.8,0.40738]
[1730829368460,3.2078,2455.1,2455.0,0.40735]
[1730829369466,6.38245165,2455.4,2455.0,4.0736]
[1730829369663,3.17465165,2455.6,2455.3,0.40729]
[1730829369969,3.17465165,2455.6,2455.1,3.2078]
[1730829370266,40.8,2455.8,2455.4,3.2078]
[1730829370566,3.17465165,2455.9,2455.7,0.40722]
[1730829371064,3.17465165,2455.9,2455.8,0.40721]
[1730829371255,44.0078,2456.0,2455.8,0.40721]
[1730829371965,40.8,2456.0,2455.8,0.40721]
[1730829372559,40.8,2456.0,2455.9,0.4666]
[1730829372759,40.8,2456.0,2455.9,0.8738]
[1730829372963,40.8,2456.0,2455.9,0.4666]
[1730829373364,40.8,2456.0,2455.9,0.9208]
[1730829375176,40.8,2456.0,2455.9,1.328]
[1730829375361,40.8,2456.0,2455.9,0.9208]
[1730829375562,40.8,2456.0,2455.7,3.2078]
[1730829375563,0.40718,2456.0,2455.7,3.2078]
[1730829375758,3.17465165,2455.9,2455.6,1.176]
[1730829376167,3.17465165,2455.9,2455.4,4.49747]
[1730829376168,0.40722,2455.8,2455.4,4.49747]
[1730829376368,3.17465165,2455.5,2455.0,1.176]
[1730829376671,3.58193165,2455.5,2455.0,1.58333]
[1730829377271,3.2078,2455.6,2454.9,0.8824]
[1730829377272,3.17465165,2455.2,2454.9,0.8824]
[1730829377865,3.17465165,2455.2,2455.0,0.40735]
[1730829378075,3.17465165,2455.2,2454.9,1.28975]
[1730829379974,3.17465165,2455.0,2454.8,3.2078]
[1730829380369,3.17465165,2455.0,2454.4,1.28104]
[1730829380370,0.40736,2454.9,2454.4,1.28104]
[1730829380567,0.40736,2454.9,2454.5,0.40743]
[1730829380971,40.8,2454.8,2454.5,0.40743]
[1730829381278,3.17465165,2454.7,2454.4,1.28104]
[1730829381475,3.17465165,2454.7,2454.5,0.40743]
[1730829381970,3.17465165,2454.7,2454.4,1.28104]
[1730829382276,3.17465165,2454.7,2454.5,0.40742]
[1730829382472,3.17465165,2454.7,2454.4,1.28104]
[1730829382678,3.17465165,2454.7,2454.4,0.8736]
[1730829382971,40.8,2454.8,2454.7,0.4074]
[1730829383175,40.8,2454.8,2454.5,0.40742]
[1730829383372,40.8,2454.8,2454.4,0.8736]
[1730829383577,40.8,2454.8,2454.6,0.40741]
[1730829384579,40.8,2454.8,2454.5,0.40742]
[1730829386173,40.8,2454.8,2454.5,0.40743]
[1730829386378,40.8,2454.8,2454.4,1.28103]
[1730829386580,3.58202165,2454.9,2454.5,0.40743]
[1730829386981,44.38202165,2454.9,2454.5,0.40743]
[1730829387685,3.58205165,2454.7,2454.4,0.8736]
[1730829387883,3.58205165,2454.7,2454.4,0.4383]
[1730829388373,3.58205165,2454.7,2454.3,0.40745]
[1730829388574,3.17465165,2454.7,2454.1,5.2959]
[1730829388773,3.58205165,2454.7,2454.4,0.40744]
[1730829389182,3.17465165,2454.7,2454.4,0.40744]
[1730829389475,3.58205165,2454.7,2454.4,0.40744]
[1730829389677,3.17465165,2454.7,2454.5,0.40742]
[1730829390381,3.17465165,2454.7,2454.1,2.0881]
[1730829390584,3.2078,2454.8,2454.7,0.4074]
[1730829391083,0.4453,2455.1,2454.7,0.4074]
[1730829391277,0.85265,2455.1,2454.6,0.40741]
[1730829391579,0.85265,2455.1,2454.7,0.40739]
[1730829392387,47.18245165,2455.2,2454.4,4.26403001]
[1730829392680,6.38245165,2455.2,2454.9,0.40735]
[1730829393085,6.38245165,2455.2,2455.0,0.40734]
[1730829393578,0.40734,2455.1,2454.7,0.86859]
[1730829393880,6.78977165,2455.2,2454.8,0.40737]
[1730829394788,0.40734,2455.1,2454.8,0.40738]
[1730829395786,6.38245165,2455.2,2455.0,0.40735]
[1730829395987,6.38245165,2455.2,2454.9,0.40735]
[1730829396292,6.78977165,2455.2,2454.9,0.40735]
[1730829397282,6.38245165,2455.2,2454.9,0.40735]
[1730829398676,6.78977165,2455.2,2454.9,0.40735]
[1730829398981,0.40733,2455.1,2454.8,0.40737]
[1730829399181,0.40734,2455.1,2454.8,0.40737]
[1730829399780,6.78978165,2455.2,2454.8,0.40737]
[1730829399986,3.17465165,2455.0,2454.9,0.40736]
[1730829400384,3.17465165,2455.0,2454.7,0.4612]
[1730829400590,0.40737,2454.9,2454.7,0.4612]
[1730829400887,1.30557,2454.9,2454.7,0.4612]
[1730829401086,0.8982,2454.9,2454.7,0.8686]
[1730829402289,0.8982,2454.9,2454.7,0.4612]
[1730829402290,1.30558,2454.9,2454.7,0.4612]
[1730829402476,0.8982,2454.9,2454.7,0.40739]
[1730829402786,3.17465165,2455.0,2454.8,0.40737]
[1730829402983,3.58200165,2455.0,2454.7,0.40739]
[1730829403580,0.40737,2454.9,2454.6,0.87771]
[1730829404591,0.40737,2454.9,2454.7,0.4074]
[1730829405387,3.17465165,2455.0,2454.6,0.4703]
[1730829405794,3.58201165,2455.0,2454.7,0.40739]
[1730829406995,3.17465165,2455.0,2454.6,0.4703]
[1730829407499,3.17465165,2455.0,2454.7,0.4074]
[1730829408095,3.58201165,2455.0,2454.7,0.4074]
[1730829409793,3.58200165,2455.0,2454.7,0.4074]
[1730829410986,3.17465165,2455.0,2454.6,0.4703]
[1730829411186,3.17465165,2455.0,2454.8,0.40737]
[1730829411599,3.58200165,2455.0,2454.7,0.40739]
[1730829412697,3.17465165,2455.0,2454.7,0.40739]
[1730829412992,3.58200165,2455.0,2454.7,0.40739]
[1730829413195,3.58200165,2455.0,2454.6,0.4703]
[1730829413393,3.58200165,2455.0,2454.6,0.8777]
[1730829413589,3.58200165,2455.0,2454.6,0.4703]
[1730829413905,3.17465165,2455.0,2454.7,0.40739]
[1730829414190,3.58200165,2455.0,2454.7,0.40739]
[1730829415495,3.17465165,2455.0,2454.7,0.40739]
[1730829415697,3.58200165,2455.0,2454.7,0.40739]
[1730829417998,3.17465165,2455.0,2454.8,0.40738]
[1730829418397,3.17465165,2455.0,2454.6,0.4703]
[1730829418591,3.58200165,2455.0,2454.7,0.40739]
[1730829418994,3.17465165,2455.0,2454.7,0.40739]
[1730829419298,3.17465165,2455.0,2454.6,0.4703]
[1730829419695,0.40737,2454.9,2454.6,0.87771]
[1730829420098,5.27378898,2455.0,2454.6,0.87771]
[1730829420299,0.40736,2454.9,2454.6,0.87771]
[1730829420793,0.40736,2454.9,2454.6,0.4703]
[1730829420992,5.27378898,2455.0,2454.7,0.4074]
[1730829421193,0.40737,2454.9,2454.7,0.4074]
[1730829421392,2.50650733,2454.9,2454.7,0.4074]
[1730829422398,2.09913733,2454.8,2454.7,0.4074]
[1730829423895,2.50651733,2454.8,2454.6,0.4703]
[1730829424099,3.17465165,2454.7,2454.6,0.87771]
[1730829425204,3.17465165,2454.7,2454.6,0.40741]
[1730829425404,3.61465165,2454.7,2454.6,0.40741]
[1730829425601,5.71378898,2454.7,2454.6,0.40741]
[1730829425998,5.71378898,2454.7,2454.4,1.06456438]
[1730829426203,5.71378898,2454.7,2454.6,0.40741]
[1730829428103,5.71378898,2454.7,2454.4,1.06456438]
[1730829428311,5.27378898,2454.7,2454.5,0.40742]
[1730829430509,5.27378898,2454.7,2454.6,0.40741]
[1730829431606,2.09913733,2454.7,2454.6,0.40741]
[1730829432007,2.10985497,2454.8,2454.7,0.4074]
[1730829433213,2.10985497,2454.8,2454.6,0.40741]
[1730829433409,5.28450662,2454.7,2454.5,0.40743]
[1730829434206,5.28450662,2454.7,2454.6,0.40741]
[1730829435307,3.17465165,2454.7,2454.6,0.40741]
[1730829436909,5.28450662,2454.7,2454.6,0.40741]
[1730829437215,3.17465165,2454.7,2454.6,0.40741]
[1730829437412,2.10985497,2454.8,2454.4,1.06456438]
[1730829437711,2.10985497,2455.0,2454.6,4.27236438]
[1730829437917,2.10985497,2455.0,2454.9,0.40736]
[1730829438113,2.10985497,2455.1,2454.7,1.97626438]
[1730829438418,2.10985497,2455.1,2454.8,0.4737]
[1730829438718,2.10985497,2455.1,2455.0,0.40735]
[1730829439408,3.57674402,2455.1,2455.0,0.40735]
[1730829440709,3.57674402,2455.1,2454.9,0.40735]
[1730829440910,3.57674402,2455.1,2454.9,0.40736]
[1730829441211,3.57674402,2455.1,2455.0,0.40735]
[1730829441410,3.57674402,2455.1,2454.8,0.4737]
[1730829441411,2.10985497,2455.1,2454.9,0.40735]
[1730829441616,2.10985497,2455.1,2454.8,0.88107]
[1730829441810,2.58485497,2455.0,2454.8,0.4737]
[1730829442021,2.58485497,2455.0,2454.9,0.40736]
[1730829444908,2.58485497,2455.0,2454.8,0.4737]
[1730829445419,2.58485497,2455.0,2454.9,0.40736]
[1730829446619,2.58485497,2455.0,2454.8,0.4737]
[1730829446818,2.58485497,2455.0,2454.8,0.88107]
[1730829447117,3.17802771,2454.9,2454.7,0.4419]
[1730829447313,4.09312771,2454.9,2454.7,0.4419]
[1730829447513,4.09312771,2454.9,2454.7,0.84929]
[1730829448120,4.09312771,2454.9,2454.7,0.4419]
[1730829448421,4.09312771,2454.9,2454.8,0.40738]
[1730829448620,4.09312771,2454.9,2454.7,0.4419]
[1730829448816,4.09312771,2454.9,2454.7,0.84928]
[1730829449319,4.09312771,2454.9,2454.8,0.40738]
[1730829449320,3.63362771,2454.9,2454.8,0.40738]
[1730829451221,3.17802771,2454.9,2454.8,0.40738]
[1730829451919,2.58485497,2455.0,2454.7,0.4419]
[1730829452220,2.58485497,2455.0,2454.9,0.40736]
[1730829454413,2.58485497,2455.0,2454.7,0.4419]
[1730829454613,2.58485497,2455.0,2454.9,0.40736]
[1730829455120,2.99221497,2455.0,2454.7,0.84929]
[1730829455315,2.58485497,2455.0,2454.7,0.4419]
[1730829455518,2.58485497,2455.0,2454.8,0.40737]
[1730829455916,2.58485497,2455.0,2454.9,0.40736]
[1730829456220,2.58485497,2455.0,2454.8,0.40737]
[1730829457120,2.58485497,2455.0,2454.7,0.4419]
[1730829457317,2.58485497,2455.0,2454.9,0.40736]
[1730829457921,2.58485497,2455.0,2454.7,0.4419]
[1730829458118,2.58485497,2455.0,2454.8,0.40737]
[1730829458322,2.99220497,2455.0,2454.7,0.84929]
[1730829459032,2.58485497,2455.0,2454.8,0.40738]
[1730829459330,2.10985497,2454.9,2454.8,0.40738]
[1730829459527,2.10985497,2454.9,2454.5,1.53776438]
[1730829459722,2.10985497,2454.8,2454.5,0.88062]
[1730829459922,2.10985497,2454.7,2454.5,0.88062]
[1730829460123,2.57165497,2454.7,2454.5,0.88062]
[1730829460519,0.4307,2454.6,2454.5,0.88062]
[1730829465031,0.4307,2454.6,2454.5,0.4732]
[1730829465535,1.89789782,2454.6,2454.5,0.88063]
[1730829467236,2.30530782,2454.6,2454.5,0.4732]
[1730829467438,0.40743,2454.5,2454.4,0.4662]
[1730829468036,4.41517279,2454.6,2454.4,0.87364]
[1730829468237,4.00775279,2454.6,2454.5,0.40743]
[1730829468537,1.89789782,2454.6,2454.5,0.40743]
[1730829470546,1.46719782,2454.6,2454.5,0.40743]
[1730829470941,1.46719782,2454.6,2454.4,0.87364]
[1730829473240,1.46719782,2454.6,2454.5,0.40743]
[1730829474441,2.10985497,2454.8,2454.4,0.4662]
[1730829474745,2.10985497,2454.8,2454.7,0.4074]
[1730829475442,6.78485279,2454.9,2454.4,3.674]
[1730829475648,6.78485279,2454.9,2454.8,0.40738]
[1730829475949,6.78485279,2454.9,2454.4,3.674]
[1730829476143,2.10985497,2454.8,2454.7,0.40739]
[1730829476739,6.78485279,2454.9,2454.8,0.40738]
[1730829476939,6.78485279,2454.9,2454.4,3.674]
[1730829477255,6.78485279,2454.9,2454.7,0.40739]
[1730829477545,6.78485279,2454.9,2454.4,3.674]
[1730829478048,2.10985497,2454.9,2454.4,5.14119782]
[1730829478247,2.58485497,2455.0,2454.9,0.40736]
[1730829478441,2.58485497,2455.0,2454.4,4.73856438]
[1730829478638,1.46719782,2454.8,2454.4,4.73856438]
[1730829478843,1.46719782,2454.8,2454.7,0.4074]
[1730829480449,1.46719782,2454.8,2454.6,0.4074]
[1730829480952,2.10985497,2454.9,2454.6,0.4074]
[1730829480953,1.46719782,2454.7,2454.6,0.4074]
[1730829483051,1.46719782,2454.7,2454.5,0.40742]
[1730829483254,1.46719782,2454.7,2454.4,3.674]
[1730829483450,1.46719782,2454.7,2454.6,0.40741]
[1730829487953,2.10985497,2454.9,2454.4,6.2057622]
[1730829488148,2.10985497,2455.0,2454.8,0.40738]
[1730829488345,3.57705279,2455.0,2454.9,1.35536]
[1730829490553,3.57705279,2455.0,2454.5,1.06456438]
[1730829490554,7.65065279,2455.0,2454.5,1.06456438]
[1730829490752,1.46719782,2454.7,2454.6,0.4074]
[1730829491451,3.57705279,2454.9,2454.5,2.01256438]
[1730829491651,3.57705279,2454.9,2454.8,0.40738]
[1730829491652,1.46719782,2454.9,2454.8,0.40738]
[1730829494048,3.57705279,2455.1,2454.8,4.0736]
[1730829494252,3.57705279,2455.1,2455.0,0.40735]
[1730829495755,3.57705279,2455.1,2454.7,3.6771]
[1730829495958,1.46719782,2454.8,2454.7,3.6152]
[1730829497357,1.46719782,2454.8,2454.7,3.2078]